[Event "Live Chess"]
[Site "Chess.com"]
[Date "2023.05.20"]
[Round "-"]
[White "JoshMcK"]
[Black "Albul"]
[Result "0-1"]
[WhiteElo "1538"]
[BlackElo "2166"]
[TimeControl "300"]
[EndTime "10:40:48 PDT"]
[Termination "Albul won by resignation"]

1. e4 {[%clk 0:04:59.2]} 1... d5 {[%clk 0:04:58.5]} 2. exd5 {[%clk 0:04:58]}
2... Nf6 {[%clk 0:04:57.5]} 3. d4 {[%clk 0:04:56.1]} 3... Nxd5 {[%clk
0:04:56.9]} 4. Nf3 {[%clk 0:04:54.8]} 4... Bg4 {[%clk 0:04:55]} 5. Be2 {[%clk
0:04:51.7]} 5... e6 {[%clk 0:04:53.5]} 6. c4 {[%clk 0:04:49.6]} 6... Nb6 {[%clk
0:04:52]} 7. Nc3 {[%clk 0:04:48]} 7... Bb4 {[%clk 0:04:49.8]} 8. O-O {[%clk
0:04:44.1]} 8... O-O {[%clk 0:04:48.5]} 9. a3 {[%clk 0:04:42.5]} 9... Be7 {[%clk
0:04:42.2]} 10. c5 {[%clk 0:04:35.6]} 10... Nd5 {[%clk 0:04:38.8]} 11. Nxd5
{[%clk 0:04:34]} 11... Qxd5 {[%clk 0:04:37.4]} 12. b4 {[%clk 0:04:26.1]} 12...
Nc6 {[%clk 0:04:34.4]} 13. Be3 {[%clk 0:04:24]} 13... a6 {[%clk 0:04:29]} 14. h3
{[%clk 0:04:17.5]} 14... Bh5 {[%clk 0:04:25.8]} 15. Qd2 {[%clk 0:03:54]} 15...
Rad8 {[%clk 0:04:13.3]} 16. Rfd1 {[%clk 0:03:51.9]} 16... Bf6 {[%clk 0:04:07.9]}
17. Rac1 {[%clk 0:03:46.4]} 17... e5 {[%clk 0:03:40.6]} 18. dxe5 {[%clk
0:03:34.5]} 18... Qxd2 {[%clk 0:03:38]} 19. Rxd2 {[%clk 0:03:34.4]} 19... Rxd2
{[%clk 0:03:33.4]} 20. Bxd2 {[%clk 0:03:34.3]} 20... Nxe5 {[%clk 0:03:27.4]} 21.
Nd4 {[%clk 0:03:15.1]} 21... Bxe2 {[%clk 0:03:21.9]} 22. Nxe2 {[%clk 0:03:15]}
22... Rd8 {[%clk 0:03:05.7]} 23. Bf4 {[%clk 0:03:10.5]} 23... Nd3 {[%clk
0:03:00.1]} 24. Rd1 {[%clk 0:03:01.5]} 24... Nxf4 {[%clk 0:02:46]} 25. Rxd8+
{[%clk 0:02:58.8]} 25... Bxd8 {[%clk 0:02:45.6]} 26. Nxf4 {[%clk 0:02:58]} 26...
Kf8 {[%clk 0:02:40.9]} 27. Kf1 {[%clk 0:02:42.7]} 27... Bg5 {[%clk 0:02:37.7]}
28. Nd5 {[%clk 0:02:39.4]} 28... c6 {[%clk 0:02:36.5]} 29. Nb6 {[%clk
0:02:34.9]} 29... Bc1 {[%clk 0:02:32.3]} 30. a4 {[%clk 0:02:33.1]} 30... Ba3
{[%clk 0:02:24.4]} 31. b5 {[%clk 0:02:29.3]} 31... axb5 {[%clk 0:02:23.3]} 32.
axb5 {[%clk 0:02:29.2]} 32... cxb5 {[%clk 0:02:16.4]} 33. Ke2 {[%clk 0:02:28.1]}
33... Ke7 {[%clk 0:02:15]} 34. Kd3 {[%clk 0:02:26.5]} 34... Bxc5 {[%clk
0:02:13.7]} 35. Nd5+ {[%clk 0:02:23.5]} 35... Kd6 {[%clk 0:02:09.9]} 36. Nc3
{[%clk 0:02:21.4]} 36... Bxf2 {[%clk 0:02:08.4]} 37. Nxb5+ {[%clk 0:02:18.4]}
37... Kc5 {[%clk 0:02:07.3]} 38. Nc3 {[%clk 0:02:16.9]} 38... Bh4 {[%clk
0:01:57.3]} 39. Ne4+ {[%clk 0:02:12.5]} 39... Kd5 {[%clk 0:01:56.2]} 40. g3
{[%clk 0:02:07.7]} 40... Be7 {[%clk 0:01:51]} 41. h4 {[%clk 0:02:04.3]} 41... b5
{[%clk 0:01:48.7]} 42. Nc3+ {[%clk 0:02:03.1]} 42... Kc6 {[%clk 0:01:44.8]} 43.
Ne4 {[%clk 0:01:59.9]} 43... b4 {[%clk 0:01:39.8]} 44. Kc4 {[%clk 0:01:58.5]}
44... f5 {[%clk 0:01:35.5]} 45. Nd2 {[%clk 0:01:54.8]} 45... Bd6 {[%clk
0:01:33]} 0-1

[Event "Live Chess"]
[Site "Chess.com"]
[Date "2023.05.20"]
[Round "-"]
[White "GEMdzq"]
[Black "Supertromp"]
[Result "0-1"]
[WhiteElo "2244"]
[BlackElo "2183"]
[TimeControl "300"]
[EndTime "10:40:50 PDT"]
[Termination "Supertromp won by resignation"]

1. e4 {[%clk 0:04:57.3]} 1... c5 {[%clk 0:04:58.2]} 2. d4 {[%clk 0:04:55.2]}
2... cxd4 {[%clk 0:04:56.1]} 3. c3 {[%clk 0:04:54.6]} 3... Nf6 {[%clk
0:04:54.9]} 4. e5 {[%clk 0:04:53.4]} 4... Nd5 {[%clk 0:04:54.3]} 5. Qxd4 {[%clk
0:04:53]} 5... e6 {[%clk 0:04:49]} 6. Bd3 {[%clk 0:04:50.1]} 6... Nc6 {[%clk
0:04:47.9]} 7. Qe4 {[%clk 0:04:48.3]} 7... d6 {[%clk 0:04:42.5]} 8. exd6 {[%clk
0:04:45.8]} 8... Bxd6 {[%clk 0:04:35]} 9. Nf3 {[%clk 0:04:43.7]} 9... Nf6 {[%clk
0:04:32.5]} 10. Qe2 {[%clk 0:04:42.5]} 10... O-O {[%clk 0:04:28]} 11. O-O {[%clk
0:04:41.6]} 11... b6 {[%clk 0:04:24.3]} 12. Rd1 {[%clk 0:04:36.7]} 12... Bb7
{[%clk 0:04:21.3]} 13. Bg5 {[%clk 0:04:28]} 13... h6 {[%clk 0:04:00.5]} 14. Bh4
{[%clk 0:04:23.7]} 14... Qe7 {[%clk 0:03:50.8]} 15. Nbd2 {[%clk 0:04:14.4]}
15... g5 {[%clk 0:03:36.3]} 16. Bg3 {[%clk 0:04:12.7]} 16... Nd5 {[%clk
0:03:34.4]} 17. Nc4 {[%clk 0:03:41.1]} 17... Bxg3 {[%clk 0:03:27.7]} 18. hxg3
{[%clk 0:03:39]} 18... Kg7 {[%clk 0:03:17.8]} 19. Re1 {[%clk 0:03:32.4]} 19...
Nf6 {[%clk 0:03:11.9]} 20. Ne3 {[%clk 0:03:12.6]} 20... Qc5 {[%clk 0:02:38.6]}
21. Rad1 {[%clk 0:02:46.7]} 21... Rad8 {[%clk 0:02:33.6]} 22. Bb1 {[%clk
0:02:45.4]} 22... Ne5 {[%clk 0:02:24.7]} 23. Nd4 {[%clk 0:02:38.9]} 23... Nc6
{[%clk 0:01:59.2]} 24. Nec2 {[%clk 0:02:02.8]} 24... Nxd4 {[%clk 0:01:55.2]} 25.
Nxd4 {[%clk 0:02:01.7]} 25... Rd7 {[%clk 0:01:23.8]} 26. Nxe6+ {[%clk
0:00:57.8]} 26... fxe6 {[%clk 0:01:21.4]} 27. Qxe6 {[%clk 0:00:55.7]} 27... Rxd1
{[%clk 0:01:13.7]} 28. Rxd1 {[%clk 0:00:55.6]} 28... Qc6 {[%clk 0:01:04.3]} 29.
Qxc6 {[%clk 0:00:49]} 29... Bxc6 {[%clk 0:01:04.2]} 30. Rd6 {[%clk 0:00:47.8]}
30... Bb7 {[%clk 0:01:02.3]} 31. f4 {[%clk 0:00:37.5]} 31... Re8 {[%clk
0:01:00.6]} 32. Bd3 {[%clk 0:00:35]} 32... Re3 {[%clk 0:00:49.2]} 33. Kf2 {[%clk
0:00:33.6]} 33... Ng4+ {[%clk 0:00:47.9]} 34. Kf1 {[%clk 0:00:28.2]} 34... Rxd3
{[%clk 0:00:44.6]} 35. Rxd3 {[%clk 0:00:26.4]} 35... Ba6 {[%clk 0:00:44]} 0-1

[Event "Live Chess"]
[Site "Chess.com"]
[Date "2023.05.20"]
[Round "-"]
[White "stevefairhurst"]
[Black "misha464"]
[Result "1-0"]
[WhiteElo "585"]
[BlackElo "745"]
[TimeControl "300"]
[EndTime "10:41:02 PDT"]
[Termination "stevefairhurst won by checkmate"]

1. e4 {[%clk 0:04:59.6]} 1... e5 {[%clk 0:04:52.6]} 2. Nf3 {[%clk 0:04:57.1]}
2... Nc6 {[%clk 0:04:52]} 3. Bc4 {[%clk 0:04:55.3]} 3... Nf6 {[%clk 0:04:51]} 4.
Ng5 {[%clk 0:04:54.3]} 4... d5 {[%clk 0:04:49.4]} 5. exd5 {[%clk 0:04:53.4]}
5... Nxd5 {[%clk 0:04:48]} 6. Nxf7 {[%clk 0:04:52]} 6... Kxf7 {[%clk 0:04:45.4]}
7. Qf3+ {[%clk 0:04:51.1]} 7... Ke6 {[%clk 0:04:43.4]} 8. Nc3 {[%clk 0:04:49.7]}
8... Qf6 {[%clk 0:04:37.9]} 9. Qxd5+ {[%clk 0:04:46.3]} 9... Ke7 {[%clk
0:04:36.2]} 10. Qc5+ {[%clk 0:04:42.1]} 10... Qd6 {[%clk 0:04:33.5]} 11. Qxd6+
{[%clk 0:04:39.9]} 11... cxd6 {[%clk 0:04:32.4]} 12. Nd5+ {[%clk 0:04:37.6]}
12... Kd8 {[%clk 0:04:26.6]} 13. Kd1 {[%clk 0:04:31.1]} 13... Be6 {[%clk
0:04:13.6]} 14. d3 {[%clk 0:04:28.2]} 14... Bxd5 {[%clk 0:04:07.4]} 15. Bxd5
{[%clk 0:04:28.1]} 15... Nd4 {[%clk 0:04:06.9]} 16. Bxb7 {[%clk 0:04:25.6]}
16... Rb8 {[%clk 0:04:06.8]} 17. Be4 {[%clk 0:04:21.7]} 17... g6 {[%clk
0:04:05.4]} 18. c3 {[%clk 0:04:19.5]} 18... Ne6 {[%clk 0:04:02.7]} 19. Be3
{[%clk 0:04:18.6]} 19... Rg8 {[%clk 0:03:57]} 20. Bxa7 {[%clk 0:04:16.5]} 20...
Rc8 {[%clk 0:03:51.9]} 21. Bb6+ {[%clk 0:04:14.4]} 21... Kd7 {[%clk 0:03:49.3]}
22. d4 {[%clk 0:04:11.2]} 22... exd4 {[%clk 0:03:48.3]} 23. cxd4 {[%clk
0:04:09.5]} 23... Rc4 {[%clk 0:03:41.5]} 24. Bd5 {[%clk 0:04:02.5]} 24... Rxd4+
{[%clk 0:03:26]} 25. Bxd4 {[%clk 0:04:00.6]} 25... Nxd4 {[%clk 0:03:25.9]} 26.
Kd2 {[%clk 0:03:58.2]} 26... Bh6+ {[%clk 0:03:21]} 27. Kd3 {[%clk 0:03:56.8]}
27... Nb5 {[%clk 0:03:19.3]} 28. Rac1 {[%clk 0:03:54.3]} 28... Rf8 {[%clk
0:03:05.5]} 29. Bc6+ {[%clk 0:03:51.3]} 29... Ke7 {[%clk 0:03:02.7]} 30. Bxb5
{[%clk 0:03:51.2]} 30... Rxf2 {[%clk 0:03:01.5]} 31. Rc7+ {[%clk 0:03:49.7]}
31... Ke6 {[%clk 0:02:59.9]} 32. Re1+ {[%clk 0:03:49.1]} 32... Kd5 {[%clk
0:02:58.7]} 33. Bc4# {[%clk 0:03:48.2]} 1-0

[Event "Live Chess"]
[Site "Chess.com"]
[Date "2023.05.20"]
[Round "-"]
[White "WelshTiger"]
[Black "JackRudd"]
[Result "0-1"]
[WhiteElo "2428"]
[BlackElo "2432"]
[TimeControl "300"]
[EndTime "10:41:16 PDT"]
[Termination "JackRudd won by checkmate"]

1. e4 {[%clk 0:04:58.7]} 1... c5 {[%clk 0:04:58.4]} 2. Nf3 {[%clk 0:04:57.3]}
2... d6 {[%clk 0:04:57.2]} 3. d4 {[%clk 0:04:53.7]} 3... cxd4 {[%clk 0:04:56.5]}
4. Nxd4 {[%clk 0:04:53.6]} 4... Nf6 {[%clk 0:04:55.6]} 5. Nc3 {[%clk 0:04:52.4]}
5... a6 {[%clk 0:04:54.5]} 6. h4 {[%clk 0:04:50.6]} 6... Nc6 {[%clk 0:04:50.2]}
7. h5 {[%clk 0:04:47.3]} 7... Bg4 {[%clk 0:04:47.3]} 8. Be2 {[%clk 0:04:42.9]}
8... Bxe2 {[%clk 0:04:46.1]} 9. Ndxe2 {[%clk 0:04:37.9]} 9... Qa5 {[%clk
0:04:43.2]} 10. Bd2 {[%clk 0:04:20.9]} 10... e6 {[%clk 0:04:33.5]} 11. Nd5
{[%clk 0:04:09.4]} 11... Qd8 {[%clk 0:04:31.6]} 12. Nxf6+ {[%clk 0:04:07.7]}
12... gxf6 {[%clk 0:04:30.6]} 13. Bc3 {[%clk 0:04:03.6]} 13... Rg8 {[%clk
0:04:28.4]} 14. g3 {[%clk 0:04:03]} 14... Bh6 {[%clk 0:04:25.8]} 15. Qd3 {[%clk
0:03:59.9]} 15... Ne5 {[%clk 0:04:17.9]} 16. Bxe5 {[%clk 0:03:57.7]} 16... fxe5
{[%clk 0:04:16]} 17. Rd1 {[%clk 0:03:52.8]} 17... Qa5+ {[%clk 0:04:14]} 18. c3
{[%clk 0:03:49.9]} 18... O-O-O {[%clk 0:04:10.9]} 19. Qf3 {[%clk 0:03:45.1]}
19... Rd7 {[%clk 0:04:04.9]} 20. Nc1 {[%clk 0:03:37.9]} 20... Bxc1 {[%clk
0:04:01.7]} 21. Rxc1 {[%clk 0:03:37.1]} 21... Qxa2 {[%clk 0:04:00.9]} 22. Qe2
{[%clk 0:03:34.4]} 22... Qa5 {[%clk 0:03:58.5]} 23. O-O {[%clk 0:03:32.6]} 23...
Qb6 {[%clk 0:03:56.8]} 24. b4 {[%clk 0:03:26.5]} 24... Rxg3+ {[%clk 0:03:54]}
25. Kh2 {[%clk 0:03:23.6]} 25... Rg5 {[%clk 0:03:52.5]} 26. f4 {[%clk
0:03:19.8]} 26... exf4 {[%clk 0:03:50.2]} 27. Rxf4 {[%clk 0:03:19.7]} 27... d5
{[%clk 0:03:34.3]} 28. Rd1 {[%clk 0:03:06.5]} 28... Qc7 {[%clk 0:03:31.4]} 29.
Qe3 {[%clk 0:02:50.9]} 29... f5 {[%clk 0:03:26.2]} 30. exd5 {[%clk 0:02:42.4]}
30... Rdg7 {[%clk 0:03:20.1]} 31. Qxe6+ {[%clk 0:02:36.7]} 31... Kb8 {[%clk
0:03:19.2]} 32. Qe8+ {[%clk 0:02:19.4]} 32... Ka7 {[%clk 0:03:18]} 33. Qe3+
{[%clk 0:02:19.1]} 33... b6 {[%clk 0:03:13.1]} 34. d6 {[%clk 0:02:08.3]} 34...
Rxh5+ {[%clk 0:03:10.4]} 35. Qh3 {[%clk 0:01:58.9]} 35... Qxc3 {[%clk
0:03:07.2]} 36. Rh4 {[%clk 0:01:51.3]} 36... Qe5+ {[%clk 0:03:01.5]} 37. Kh1
{[%clk 0:01:48.7]} 37... Qe4+ {[%clk 0:03:00.1]} 38. Kh2 {[%clk 0:01:48.1]}
38... Qe2+ {[%clk 0:02:56.4]} 39. Kh1 {[%clk 0:01:46.9]} 39... Qxd1+ {[%clk
0:02:55.3]} 40. Kh2 {[%clk 0:01:45.7]} 40... Qg1# {[%clk 0:02:54.5]} 0-1

[Event "Live Chess"]
[Site "Chess.com"]
[Date "2023.05.20"]
[Round "-"]
[White "BogdanBeleiUkraine"]
[Black "lamteama1"]
[Result "0-1"]
[WhiteElo "1203"]
[BlackElo "1160"]
[TimeControl "300"]
[EndTime "10:41:30 PDT"]
[Termination "lamteama1 won by checkmate"]

1. e4 {[%clk 0:04:56.8]} 1... c5 {[%clk 0:04:34.3]} 2. Nc3 {[%clk 0:04:55.3]}
2... a6 {[%clk 0:04:25.1]} 3. a4 {[%clk 0:04:51.5]} 3... d6 {[%clk 0:04:20.8]}
4. Bc4 {[%clk 0:04:50.3]} 4... Nf6 {[%clk 0:04:14]} 5. Nge2 {[%clk 0:04:48.7]}
5... e6 {[%clk 0:04:07.6]} 6. O-O {[%clk 0:04:45.3]} 6... d5 {[%clk 0:04:02.4]}
7. exd5 {[%clk 0:04:43.5]} 7... exd5 {[%clk 0:03:57.1]} 8. Ba2 {[%clk 0:04:42]}
8... d4 {[%clk 0:03:51.4]} 9. Ne4 {[%clk 0:04:37.5]} 9... Nxe4 {[%clk
0:03:45.1]} 10. d3 {[%clk 0:04:33.8]} 10... Nf6 {[%clk 0:03:40.2]} 11. Ng3
{[%clk 0:04:32.2]} 11... Be7 {[%clk 0:03:30.9]} 12. Bf4 {[%clk 0:04:23.3]} 12...
O-O {[%clk 0:03:24.9]} 13. h3 {[%clk 0:04:21.7]} 13... Nc6 {[%clk 0:03:19]} 14.
Ne2 {[%clk 0:04:10.6]} 14... Bd6 {[%clk 0:03:13.4]} 15. Bg5 {[%clk 0:04:06.4]}
15... h6 {[%clk 0:03:07.2]} 16. Bh4 {[%clk 0:04:03.7]} 16... Re8 {[%clk
0:03:00.2]} 17. Bg3 {[%clk 0:03:56.3]} 17... Be6 {[%clk 0:02:53.7]} 18. c3
{[%clk 0:03:30.6]} 18... Bxg3 {[%clk 0:02:32.5]} 19. fxg3 {[%clk 0:03:26.7]}
19... Bxa2 {[%clk 0:02:25.6]} 20. Rxa2 {[%clk 0:03:24.9]} 20... Re3 {[%clk
0:02:19]} 21. c4 {[%clk 0:03:17.7]} 21... Nb4 {[%clk 0:02:13.6]} 22. Ra1 {[%clk
0:03:15.6]} 22... Rxd3 {[%clk 0:02:07.2]} 23. Qb1 {[%clk 0:03:10.7]} 23... Re3
{[%clk 0:02:01.7]} 24. Rf2 {[%clk 0:03:02.8]} 24... Ne4 {[%clk 0:01:55.6]} 25.
Rf4 {[%clk 0:02:59.3]} 25... d3 {[%clk 0:01:45.5]} 26. Nc3 {[%clk 0:02:47.7]}
26... Nxg3 {[%clk 0:01:35.8]} 27. Kh2 {[%clk 0:02:37.4]} 27... Qd6 {[%clk
0:01:25]} 28. Rf3 {[%clk 0:02:21.7]} 28... Rxf3 {[%clk 0:01:20.7]} 29. gxf3
{[%clk 0:02:20]} 29... Qf4 {[%clk 0:01:15.4]} 30. Qg1 {[%clk 0:02:15.5]} 30...
Ne2+ {[%clk 0:01:07.4]} 31. Kg2 {[%clk 0:02:08.8]} 31... Qg3+ {[%clk 0:01:00.6]}
32. Kf1 {[%clk 0:02:06.4]} 32... Qxg1# {[%clk 0:00:54.2]} 0-1

[Event "Live Chess"]
[Site "Chess.com"]
[Date "2023.05.20"]
[Round "-"]
[White "chessleanstrategist"]
[Black "martynstanley"]
[Result "0-1"]
[WhiteElo "404"]
[BlackElo "988"]
[TimeControl "300"]
[EndTime "10:41:39 PDT"]
[Termination "martynstanley won on time"]

1. c4 {[%clk 0:04:59.1]} 1... e6 {[%clk 0:04:59.4]} 2. g3 {[%clk 0:04:57.9]}
2... d5 {[%clk 0:04:58.8]} 3. cxd5 {[%clk 0:04:54]} 3... exd5 {[%clk 0:04:57.3]}
4. Nc3 {[%clk 0:04:53.6]} 4... c5 {[%clk 0:04:56.6]} 5. d4 {[%clk 0:04:50.6]}
5... Qb6 {[%clk 0:04:53.3]} 6. e3 {[%clk 0:04:45.2]} 6... Nh6 {[%clk 0:04:48.8]}
7. Bg2 {[%clk 0:04:37.5]} 7... Be6 {[%clk 0:04:45.6]} 8. Nge2 {[%clk 0:04:34.1]}
8... Nf5 {[%clk 0:04:43.9]} 9. O-O {[%clk 0:04:20.7]} 9... Nc6 {[%clk
0:04:41.5]} 10. a4 {[%clk 0:04:08.1]} 10... cxd4 {[%clk 0:04:40.3]} 11. exd4
{[%clk 0:03:45.3]} 11... Ncxd4 {[%clk 0:04:36.6]} 12. Nxd4 {[%clk 0:03:32.2]}
12... Nxd4 {[%clk 0:04:34.8]} 13. a5 {[%clk 0:03:19.7]} 13... Qc5 {[%clk
0:04:32.9]} 14. Be3 {[%clk 0:03:08.7]} 14... Qd6 {[%clk 0:04:17.7]} 15. Bxd4
{[%clk 0:03:05.6]} 15... Be7 {[%clk 0:04:15.9]} 16. Re1 {[%clk 0:02:48.3]} 16...
O-O {[%clk 0:04:12.6]} 17. Qc2 {[%clk 0:02:29]} 17... b6 {[%clk 0:04:11.7]} 18.
axb6 {[%clk 0:02:26.8]} 18... axb6 {[%clk 0:04:08.5]} 19. Rxa8 {[%clk
0:02:24.2]} 19... Rxa8 {[%clk 0:04:07.3]} 20. Nb5 {[%clk 0:02:19.1]} 20... Qb4
{[%clk 0:04:05.2]} 21. Qe2 {[%clk 0:01:38.1]} 21... Ra5 {[%clk 0:03:54.8]} 22.
Na3 {[%clk 0:01:21.2]} 22... Qxd4 {[%clk 0:03:50]} 23. Rd1 {[%clk 0:00:49.9]}
23... Qb4 {[%clk 0:03:42.7]} 24. Nb1 {[%clk 0:00:30.8]} 24... Ra2 {[%clk
0:03:40]} 25. Nc3 {[%clk 0:00:07.9]} 25... Rxb2 {[%clk 0:03:38.6]} 26. Qd3
{[%clk 0:00:03.8]} 26... g6 {[%clk 0:03:29.7]} 0-1

[Event "Live Chess"]
[Site "Chess.com"]
[Date "2023.05.20"]
[Round "-"]
[White "yarek"]
[Black "ReeceHockton"]
[Result "1-0"]
[WhiteElo "1895"]
[BlackElo "323"]
[TimeControl "300"]
[EndTime "10:41:43 PDT"]
[Termination "yarek won by checkmate"]

1. e4 {[%clk 0:04:57.8]} 1... Nc6 {[%clk 0:04:58.8]} 2. d4 {[%clk 0:04:55.4]}
2... e5 {[%clk 0:04:54]} 3. d5 {[%clk 0:04:53]} 3... Nce7 {[%clk 0:04:47.9]} 4.
Nf3 {[%clk 0:04:45.8]} 4... d6 {[%clk 0:04:46.7]} 5. c4 {[%clk 0:04:44.1]} 5...
c6 {[%clk 0:04:44.1]} 6. Nc3 {[%clk 0:04:41]} 6... cxd5 {[%clk 0:04:36.8]} 7.
cxd5 {[%clk 0:04:39.2]} 7... Bg4 {[%clk 0:04:23.3]} 8. h3 {[%clk 0:04:35.8]}
8... Bxf3 {[%clk 0:04:18.4]} 9. Qxf3 {[%clk 0:04:34]} 9... f6 {[%clk 0:04:16]}
10. Bb5+ {[%clk 0:04:23]} 10... Kf7 {[%clk 0:04:04.8]} 11. O-O {[%clk
0:04:13.2]} 11... Nh6 {[%clk 0:03:49.4]} 12. Bxh6 {[%clk 0:04:02.8]} 12... gxh6
{[%clk 0:03:46.6]} 13. Rac1 {[%clk 0:03:30]} 13... Rg8 {[%clk 0:03:43.9]} 14.
Kh2 {[%clk 0:03:12.2]} 14... a6 {[%clk 0:03:41.1]} 15. Be2 {[%clk 0:03:06.3]}
15... Ng6 {[%clk 0:03:31]} 16. Qf5 {[%clk 0:02:54.8]} 16... Be7 {[%clk
0:03:17.2]} 17. Bh5 {[%clk 0:02:41.8]} 17... Qc7 {[%clk 0:03:00.4]} 18. Ne2
{[%clk 0:02:16.7]} 18... Qb6 {[%clk 0:02:54.5]} 19. b3 {[%clk 0:02:09.8]} 19...
Rge8 {[%clk 0:02:05.8]} 20. Ng3 {[%clk 0:01:56.3]} 20... Qd4 {[%clk 0:01:37.2]}
21. Rc7 {[%clk 0:01:40.1]} 21... Qd3 {[%clk 0:01:21]} 22. Rfc1 {[%clk
0:01:16.4]} 22... Qd2 {[%clk 0:01:04.7]} 23. R1c2 {[%clk 0:01:03.2]} 23... Qg5
{[%clk 0:00:58.8]} 24. Qe6+ {[%clk 0:00:59.5]} 24... Kg7 {[%clk 0:00:51.5]} 25.
Bxg6 {[%clk 0:00:55.2]} 25... Qxg6 {[%clk 0:00:49.1]} 26. Rxe7+ {[%clk
0:00:53.9]} 26... Rxe7 {[%clk 0:00:38]} 27. Qxe7+ {[%clk 0:00:53.8]} 27... Qf7
{[%clk 0:00:34.6]} 28. Nf5+ {[%clk 0:00:50]} 28... Kg6 {[%clk 0:00:30.8]} 29.
Qxf7+ {[%clk 0:00:44.6]} 29... Kxf7 {[%clk 0:00:29.7]} 30. Nxd6+ {[%clk
0:00:44.4]} 30... Ke7 {[%clk 0:00:25.2]} 31. Nxb7 {[%clk 0:00:44.3]} 31... Rg8
{[%clk 0:00:21.6]} 32. d6+ {[%clk 0:00:41]} 32... Ke6 {[%clk 0:00:19.4]} 33. Rc7
{[%clk 0:00:37.9]} 33... Re8 {[%clk 0:00:14.8]} 34. d7 {[%clk 0:00:36.4]} 34...
Ke7 {[%clk 0:00:12.7]} 35. d8=Q+ {[%clk 0:00:33.6]} 35... Kf8 {[%clk 0:00:04.1]}
36. Qxf6+ {[%clk 0:00:30.7]} 36... Kg8 {[%clk 0:00:01.4]} 37. Qg7# {[%clk
0:00:29.9]} 1-0

[Event "Live Chess"]
[Site "Chess.com"]
[Date "2023.05.20"]
[Round "-"]
[White "CeladonFish"]
[Black "laki79"]
[Result "0-1"]
[WhiteElo "1011"]
[BlackElo "2318"]
[TimeControl "300"]
[EndTime "10:41:48 PDT"]
[Termination "laki79 won by checkmate"]

1. d4 {[%clk 0:04:54.6]} 1... Nf6 {[%clk 0:04:58]} 2. c4 {[%clk 0:04:52.8]} 2...
g6 {[%clk 0:04:57]} 3. Nc3 {[%clk 0:04:51.4]} 3... Bg7 {[%clk 0:04:56.3]} 4. Bf4
{[%clk 0:04:49.5]} 4... d6 {[%clk 0:04:53.3]} 5. Nf3 {[%clk 0:04:48.2]} 5... O-O
{[%clk 0:04:51]} 6. e3 {[%clk 0:04:46.7]} 6... b6 {[%clk 0:04:48.7]} 7. Be2
{[%clk 0:04:42.3]} 7... Bb7 {[%clk 0:04:48]} 8. O-O {[%clk 0:04:40.9]} 8... Ne4
{[%clk 0:04:46.6]} 9. d5 {[%clk 0:04:35.9]} 9... Nxc3 {[%clk 0:04:30.3]} 10.
bxc3 {[%clk 0:04:32.5]} 10... c5 {[%clk 0:04:22.4]} 11. Qc2 {[%clk 0:04:25]}
11... Nd7 {[%clk 0:04:18.8]} 12. h4 {[%clk 0:04:24.2]} 12... Nf6 {[%clk
0:04:17.3]} 13. Nh2 {[%clk 0:04:12.2]} 13... h5 {[%clk 0:04:13.1]} 14. g4 {[%clk
0:04:10.7]} 14... hxg4 {[%clk 0:04:11.1]} 15. Bxg4 {[%clk 0:04:06]} 15... Bc8
{[%clk 0:04:06.7]} 16. f3 {[%clk 0:04:01]} 16... Bd7 {[%clk 0:03:50.8]} 17. Kg2
{[%clk 0:03:44.4]} 17... Qc8 {[%clk 0:03:48.8]} 18. Kg3 {[%clk 0:03:42.7]} 18...
Kh7 {[%clk 0:03:38.6]} 19. h5 {[%clk 0:03:35.2]} 19... Bf5 {[%clk 0:03:19.9]}
20. hxg6+ {[%clk 0:03:28.7]} 20... fxg6 {[%clk 0:03:15.2]} 21. e4 {[%clk
0:03:24.2]} 21... Bxg4 {[%clk 0:03:12.9]} 22. Nxg4 {[%clk 0:03:23.1]} 22... Nh5+
{[%clk 0:03:10.3]} 23. Kf2 {[%clk 0:02:44.4]} 23... Rxf4 {[%clk 0:03:06.1]} 24.
Rh1 {[%clk 0:02:41.1]} 24... Qxg4 {[%clk 0:03:03.4]} 25. Qe2 {[%clk 0:02:37.4]}
25... Qg3+ {[%clk 0:02:53.7]} 26. Ke3 {[%clk 0:02:35.6]} 26... Raf8 {[%clk
0:02:39.6]} 27. Raf1 {[%clk 0:02:31.9]} 27... Bxc3 {[%clk 0:02:29]} 28. Qh2
{[%clk 0:01:53.3]} 28... Rxf3+ {[%clk 0:02:24.2]} 29. Rxf3 {[%clk 0:01:51.7]}
29... Qxf3# {[%clk 0:02:21.5]} 0-1

[Event "Live Chess"]
[Site "Chess.com"]
[Date "2023.05.20"]
[Round "-"]
[White "Fazer180"]
[Black "tpm07"]
[Result "1-0"]
[WhiteElo "1728"]
[BlackElo "1958"]
[TimeControl "300"]
[EndTime "10:41:48 PDT"]
[Termination "Fazer180 won by resignation"]

1. e4 {[%clk 0:04:58.7]} 1... e5 {[%clk 0:04:58]} 2. Nf3 {[%clk 0:04:57.8]} 2...
Nc6 {[%clk 0:04:57.1]} 3. d4 {[%clk 0:04:57.5]} 3... exd4 {[%clk 0:04:55.6]} 4.
Nxd4 {[%clk 0:04:57.4]} 4... Nf6 {[%clk 0:04:53.4]} 5. Nc3 {[%clk 0:04:56.4]}
5... Bb4 {[%clk 0:04:50.6]} 6. Nxc6 {[%clk 0:04:51.5]} 6... bxc6 {[%clk
0:04:48.1]} 7. Bd2 {[%clk 0:04:37.1]} 7... O-O {[%clk 0:04:44]} 8. Bd3 {[%clk
0:04:28.1]} 8... d5 {[%clk 0:04:41.1]} 9. exd5 {[%clk 0:04:27.1]} 9... cxd5
{[%clk 0:04:39.7]} 10. O-O {[%clk 0:04:24.7]} 10... c6 {[%clk 0:04:36.2]} 11. a3
{[%clk 0:04:12.1]} 11... Be7 {[%clk 0:04:30.8]} 12. Re1 {[%clk 0:04:02.6]} 12...
Be6 {[%clk 0:04:28.5]} 13. Bf4 {[%clk 0:03:48]} 13... Bd6 {[%clk 0:04:18.4]} 14.
Bxd6 {[%clk 0:03:45]} 14... Qxd6 {[%clk 0:04:16.2]} 15. Qf3 {[%clk 0:03:39.6]}
15... Rab8 {[%clk 0:04:13.3]} 16. b3 {[%clk 0:03:31.7]} 16... Qc5 {[%clk
0:04:09.1]} 17. Ne2 {[%clk 0:03:23.3]} 17... Rfe8 {[%clk 0:04:01.1]} 18. Nf4
{[%clk 0:03:20.2]} 18... Bg4 {[%clk 0:03:54.7]} 19. Qg3 {[%clk 0:03:00]} 19...
Bd7 {[%clk 0:03:45.8]} 20. a4 {[%clk 0:02:49]} 20... Ne4 {[%clk 0:03:42.2]} 21.
Bxe4 {[%clk 0:02:44.8]} 21... dxe4 {[%clk 0:03:42.1]} 22. Rac1 {[%clk
0:02:36.8]} 22... g6 {[%clk 0:03:36.3]} 23. Qe3 {[%clk 0:02:33.1]} 23... f5
{[%clk 0:03:31]} 24. Qxc5 {[%clk 0:02:30.8]} 1-0